Workbook

Sheet الصافي الشهر
A1: الصافي الشهري
A2: م | B2: التاريخ | C2: الصافي اليومي
A3: 1
A4: 2
A5: 3
A6: 4
A7: 5
A8: 6
A9: 7
A10: 8
A11: 9
A12: 10
A13: 11
A14: 12
A15: 13
A16: 14
A17: 15
A18: 16
A19: 17
A20: 18
A21: 19
A22: 20
A23: 21
A24: 22
A25: 23
A26: 24
A27: 25
A28: 26
A29: 27
A30: 28
A31: 29
A32: 30
A33: 31

Sheet ج 19-6
E1: حساب العيادة الاجمالي
A2: م | B2: العيادة | C2: قيمة الكشف | D2: فكسد الدكتور الجمعة فقط | E2: عدد الكشوف | F2: قيمة الكشف | G2: اجمالي قيمة الكشوف | H2: عدد الاستشارات | I2: قيمة الاستشارة | J2: اجمالي قيمة الاستشارات | K2: اجمالي قيمة الخدمات | L2: اجمالي قيمة العيادة يومياً | M2: قيمة ال 10 كشوف | N2: الفكسد | O2: عدد باقي الكشوف | P2: باقي قيمة الكشوف | Q2: اجمالي الاستشارة و الخدمات | R2: اجمالي قيمة باقي الكشوف و الاستشارات والخدمات | S2: نسبة ال 50 % | T2: المبني | U2: الدكتور | V2: الفرق | W2: التمريض
A3: 1 | B3: الباطنة | C3: 60 | D3: 1000 | E3: 21 | F3: 60 | G3: =F3*E3 -> 1260 | H3: 2 | I3: 20 | J3: =H3*I3 -> 40 | K3: 50 | L3: =K3+G3+J3 -> 1350 | M3: =10*F3 -> 600 | N3: =D3 -> 1000 | O3: =(E3-10) -> 11 | P3: =O3*F3 -> 660 | Q3: =K3+J3 -> 90 | R3: =Q3+P3 -> 750 | S3: =R3*50% -> 375 | T3: =(S3+M3)-N3 -> -25 | U3: =S3+N3 -> 1375 | V3: =L3-(U3+T3) -> 0 | W3: 75
A4: 3 | B4: الاطفال | C4: 60 | D4: 800 | E4: 16 | F4: 60 | G4: =F4*E4 -> 960 | H4: 1 | I4: 20 | J4: =H4*I4 -> 20 | K4: 0 | L4: =K4+G4+J4 -> 980 | M4: =10*F4 -> 600 | N4: =D4 -> 800 | O4: =(E4-10) -> 6 | P4: =O4*F4 -> 360 | Q4: 20 | R4: =Q4+P4 -> 380 | S4: =R4*50% -> 190 | T4: -10 | U4: 990 | V4: =L4-(U4+T4) -> 0 | W4: 75
A5: 4 | B5: النساء والتوليد | C5: 60 | D5: 800 | E5: 11 | F5: 60 | G5: 660 | H5: 1 | I5: 20 | J5: 20 | L5: 680 | M5: 600 | N5: 800 | O5: 1 | P5: 60 | Q5: 20 | R5: =Q5+P5 -> 80 | S5: 40 | T5: -160 | U5: 840 | V5: 0 | W5: 75
A6: 10 | B6: العظام | C6: 60 | D6: 800 | E6: 45 | F6: 60 | G6: 2700 | H6: 1 | I6: 20 | J6: 20 | K6: 200 | L6: 2920 | M6: 600 | N6: 800 | O6: 35 | P6: 2100 | Q6: 220 | R6: 2320 | S6: 1160 | T6: 960 | U6: 1960 | V6: 0 | W6: 75
A7: 11 | B7: الرمد | C7: 60 | D7: 800 | E7: 32 | F7: 60 | G7: 1920 | H7: 3 | I7: 20 | J7: 60 | K7: 175 | L7: 2155 | M7: 600 | N7: 800 | O7: 22 | P7: 1320 | Q7: 235 | R7: 1555 | S7: 777.5 | T7: 577.5 | U7: 1577.5 | V7: 0 | W7: 75
A8: 12 | B8: الانف واذن | C8: 60 | D8: 1000 | E8: 13 | F8: 60 | G8: 780 | H8: 1 | I8: 20 | J8: 20 | K8: 0 | L8: 800 | M8: 600 | N8: 1000 | O8: 3 | P8: 180 | Q8: 20 | R8: 200 | S8: 100 | T8: -300 | U8: 1100 | V8: 0 | W8: 75
A9: 16 | B9: الجراحة | C9: 60 | D9: 800 | E9: 6 | F9: 60 | G9: 360 | H9: 1 | I9: 20 | J9: 20 | K9: 0 | L9: 380 | M9: 600 | N9: 800 | O9: -4 | P9: -240 | Q9: 20 | R9: -220 | S9: -110 | T9: -310 | U9: 690 | V9: 0 | W9: 150
A10: 17 | B10: المسالك البولية | C10: 60 | D10: 800 | E10: 6 | F10: 60 | G10: 360 | H10: 1 | I10: 20 | J10: 20 | K10: 0 | L10: 380 | M10: 600 | N10: 800 | O10: -4 | P10: -240 | Q10: 20 | R10: -220 | S10: -110 | T10: -310 | U10: 690 | V10: 0 | W10: 100
A11: 13 | B11: الجلدية والتناسلية | C11: 80 | D11: 800 | E11: 51 | F11: 80 | G11: 4080 | H11: 3 | I11: 20 | J11: 60 | K11: 0 | L11: 4140 | M11: 800 | N11: 800 | O11: 41 | P11: 3280 | Q11: 60 | R11: 3340 | S11: 1670 | T11: 1670 | U11: 2470 | V11: 0 | W11: 100
A12: 14 | B12: الصدرية | C12: 80 | D12: 1500 | E12: 10 | F12: 80 | G12: 800 | H12: 2 | I12: 20 | J12: 40 | K12: 0 | L12: 840 | M12: 800 | N12: 1500 | O12: 0 | P12: 0 | Q12: 40 | R12: =Q12+P12 -> 40 | S12: 20 | T12: -680 | U12: =S12+N12 -> 1520 | V12: 0 | W12: 100
A13: 15 | B13: المخ والاعصاب | C13: 100 | D13: 1300 | E13: 21 | F13: 100 | G13: 2100 | H13: 1 | I13: 20 | J13: 20 | K13: 0 | L13: 2120 | M13: 1000 | N13: 1300 | O13: 11 | P13: 1100 | Q13: 20 | R13: =Q13+P13 -> 1120 | S13: 560 | T13: 260 | U13: =S13+N13 -> 1860 | V13: 0 | W13: 100
A14: 18 | B14: قلب واوعية دموية | C14: 100 | D14: 1300 | E14: 8 | F14: 100 | G14: 800 | H14: 3 | I14: 20 | J14: 60 | K14: 0 | L14: 860 | M14: 1000 | N14: 1300 | O14: -2 | P14: -200 | Q14: 60 | R14: -140 | S14: -70 | T14: -370 | U14: =S14+N14 -> 1230 | V14: 0 | W14: 100
A15: 5 | B15: الاسنان | C15: 60 | D15: 800 | E15: 22 | F15: 60 | G15: 1320 | H15: 2 | I15: 20 | J15: 40 | K15: 5000 | L15: 6360 | M15: 600 | N15: 800 | O15: 12 | P15: 720 | Q15: 5040 | R15: 5760 | S15: 2880 | T15: 2680 | U15: =S15+N15 -> 3680 | V15: 0 | W15: 70
A16: 9 | B16: الطواريء | C16: 80 | D16: 1200 | F16: 60 | G16: 0 | I16: 20 | J16: 0 | L16: 865 | T16: 865 | U16: 2200
A17: 19 | B17: المعمل | L17: 4250 | T17: 4250
A18: 20 | B18: الاشاعة | L18: 3240 | T18: 3240
B19: المستلزمات والتعقيم | W19: 140
B20: مشرف تمريض | W20: 150
B21: الاشعة | W21: 140
B22: النظافة | W22: 70
B23: الامن | W23: 150
B24: رسبشن | W24: 110
B26: التاريخ | L26: =SUM(L3:L25) -> 32320 | T26: =SUM(T3:T25) -> 12337.5 | U26: =SUM(U3:U25) -> 22182.5 | W26: =SUM(W3:W25) -> 1930
B27: 2026-06-19 | Q27: الصافي | R27: =L26-(W26+U26) -> 8207.5

Sheet س 20-6
E1: حساب العيادة الاجمالي
A2: م | B2: العيادة | C2: قيمة الكشف | D2: فكسد الدكتور الجمعة فقط | E2: عدد الكشوف | F2: قيمة الكشف | G2: اجمالي قيمة الكشوف | H2: عدد الاستشارات | I2: قيمة الاستشارة | J2: اجمالي قيمة الاستشارات | K2: اجمالي قيمة الخدمات | L2: اجمالي قيمة العيادة يومياً | M2: قيمة ال 10 كشوف | N2: الفكسد | O2: عدد باقي الكشوف | P2: باقي قيمة الكشوف | Q2: اجمالي الاستشارة و الخدمات | R2: اجمالي قيمة باقي الكشوف و الاستشارات والخدمات | S2: نسبة ال 50 % | T2: المبني | U2: الدكتور | V2: الفرق | W2: التمريض
A3: 1 | B3: الباطنة | C3: 80 | D3: 500 | F3: =C3 -> 80 | G3: =F3*E3 -> 0 | I3: 20 | J3: =H3*I3 -> 0 | L3: =K3+G3+J3 -> 0 | M3: =10*F3 -> 800 | N3: =D3 -> 500 | O3: =(E3-10) -> -10 | P3: =O3*F3 -> -800 | Q3: =K3+J3 -> 0 | R3: =Q3+P3 -> -800 | S3: =R3*50% -> -400 | T3: =(S3+M3)-N3 -> -100 | U3: =S3+N3 -> 100 | V3: =L3-(U3+T3) -> 0 | W3: 75
A4: 3 | B4: الاطفال | C4: 80 | D4: 500 | E4: 12 | F4: =C4 -> 80 | G4: =F4*E4 -> 960 | H4: 2 | I4: 20 | J4: =H4*I4 -> 40 | K4: 0 | L4: =K4+G4+J4 -> 1000 | M4: =10*F4 -> 800 | N4: =D4 -> 500 | O4: =(E4-10) -> 2 | P4: =O4*F4 -> 160 | Q4: 40 | R4: =Q4+P4 -> 200 | S4: =R4*50% -> 100 | T4: 400 | U4: 600 | V4: =L4-(U4+T4) -> 0 | W4: 75
A5: 4 | B5: النساء والتوليد | C5: 80 | D5: 500
A6: 10 | B6: العظام | C6: 80 | D6: 800 | E6: 27 | F6: 80 | G6: 2160 | H6: 13 | I6: 20 | J6: 260 | K6: 200 | L6: 2620 | M6: =10*F6 -> 800 | N6: 800 | O6: 17 | P6: 1360 | Q6: 460 | R6: =Q6+P6 -> 1820 | S6: 910 | T6: 910 | U6: =S6+N6 -> 1710 | V6: 0 | W6: 75
A7: 11 | B7: الرمد | C7: 80 | D7: 500
A8: 12 | B8: الانف واذن | C8: 80 | D8: 1000 | E8: 21 | F8: 80 | G8: 1680 | H8: 3 | I8: 20 | J8: 60 | K8: 250 | L8: 1990 | M8: 800 | N8: 1000 | O8: 11 | P8: 880 | Q8: 310 | R8: 1190 | S8: 595 | T8: 395 | U8: 1595 | V8: 0 | W8: 75
A9: 16 | B9: الجراحة | C9: 80 | D9: 500
A10: 17 | B10: المسالك البولية | C10: 80 | D10: 500
A11: 13 | B11: الجلدية والتناسلية | C11: 80 | D11: 800
A12: 14 | B12: الصدرية | C12: 80 | D12: 1500
A13: 15 | B13: المخ والاعصاب | C13: 100 | D13: 1300
A14: 18 | B14: قلب واوعية دموية | C14: 100 | D14: 1300
A15: 5 | B15: الاسنان | C15: 60 | D15: 800 | E15: 23 | F15: 60 | G15: 1380 | H15: 2 | I15: 20 | J15: 40 | K15: 4000 | L15: 5420 | T15: =L15*50% -> 2710 | U15: =S15+N15 -> 0 | V15: 2710 | W15: 70
A16: 9 | B16: الطواريء | C16: 80 | D16: 1200 | F16: 80 | G16: 0 | I16: 20 | J16: 0 | L16: 0 | T16: =L16 -> 0 | U16: 1800
A17: 19 | B17: المعمل | L17: 0 | T17: =L17 -> 0
B18: المصروفات الخارجية | W18: 2950
B19: موظفين المستلزمات والتعقيم | T19: 4880 | W19: 140
B20: مشرف تمريض | W20: 150
B21: الاشعة | T21: 2900 | W21: 140
B22: النظافة | W22: 70
B23: الامن | W23: 150
B24: رسبشن | W24: 110
B26: التاريخ | L26: =SUM(L3:L25) -> 11030 | T26: =SUM(T3:T25) -> 12095 | U26: =SUM(U3:U25) -> 5805 | W26: =SUM(W3:W25) -> 4080
B27: 2026-06-20 | Q27: الصافي | R27: =L26-(W26+U26) -> 1145

Sheet ح 21
E1: حساب العيادة الاجمالي
A2: م | B2: العيادة | C2: قيمة الكشف | D2: فكسد الدكتور الجمعة فقط | E2: عدد الكشوف | F2: قيمة الكشف | G2: اجمالي قيمة الكشوف | H2: عدد الاستشارات | I2: قيمة الاستشارة | J2: اجمالي قيمة الاستشارات | K2: اجمالي قيمة الخدمات | L2: اجمالي قيمة العيادة يومياً | M2: قيمة ال 10 كشوف | N2: الفكسد | O2: عدد باقي الكشوف | P2: باقي قيمة الكشوف | Q2: اجمالي الاستشارة و الخدمات | R2: اجمالي قيمة باقي الكشوف و الاستشارات والخدمات | S2: نسبة ال 50 % | T2: المبني | U2: الدكتور | V2: الفرق | W2: التمريض
A3: 1 | B3: الباطنة | C3: 80 | D3: 500 | E3: 17 | F3: =C3 -> 80 | G3: =F3*E3 -> 1360 | H3: 6 | I3: 20 | J3: =H3*I3 -> 120 | K3: 100 | L3: =K3+G3+J3 -> 1580 | M3: =10*F3 -> 800 | N3: =D3 -> 500 | O3: =(E3-10) -> 7 | P3: =O3*F3 -> 560 | Q3: =K3+J3 -> 220 | R3: =Q3+P3 -> 780 | S3: =R3*50% -> 390 | T3: =(S3+M3)-N3 -> 690 | U3: =S3+N3 -> 890 | V3: =L3-(U3+T3) -> 0 | W3: 75
A4: 3 | B4: الاطفال | C4: 80 | D4: 500 | E4: 17 | F4: =C4 -> 80 | G4: =F4*E4 -> 1360 | H4: 4 | I4: 20 | J4: =H4*I4 -> 80 | L4: =K4+G4+J4 -> 1440 | M4: =10*F4 -> 800 | N4: =D4 -> 500 | O4: =(E4-10) -> 7 | P4: =O4*F4 -> 560 | Q4: 80 | R4: =Q4+P4 -> 640 | S4: =R4*50% -> 320 | T4: 620 | U4: 820 | V4: =L4-(U4+T4) -> 0 | W4: 75
A5: 4 | B5: النساء والتوليد | C5: 80 | D5: 500 | E5: 21 | F5: 80 | G5: 1680 | H5: 5 | I5: 30 | J5: 150 | K5: 200 | L5: 2030 | M5: 800 | N5: 500 | O5: 11 | P5: 880 | Q5: 350 | R5: =Q5+P5 -> 1230 | S5: 615 | T5: 915 | U5: 1115 | V5: 0 | W5: 75
A6: 10 | B6: العظام | C6: 80 | D6: 800
A7: 11 | B7: الرمد | C7: 80 | D7: 500 | E7: 10 | F7: 80 | G7: 800 | I7: 20 | J7: 0 | K7: 240 | L7: 1040 | M7: 800 | N7: 500 | O7: 0 | P7: 0 | Q7: 240 | R7: 240 | S7: 120 | T7: 420 | U7: 620 | V7: 0 | W7: 75
A8: 12 | B8: الانف واذن | C8: 80 | D8: 1000
A9: 16 | B9: الجراحة | C9: 80 | D9: 500
A10: 17 | B10: المسالك البولية | C10: 80 | D10: 500 | E10: 9 | F10: 80 | G10: 720 | H10: 2 | I10: 20 | J10: 40 | L10: 760 | M10: 800 | N10: 500 | O10: -1 | P10: -80 | Q10: 40 | R10: -40 | S10: -20 | T10: 280 | U10: 480 | V10: 0 | W10: 75
A11: 13 | B11: الجلدية والتناسلية | C11: 80 | D11: 800
A12: 14 | B12: الصدرية | C12: 80 | D12: 1500
A13: 15 | B13: المخ والاعصاب | C13: 100 | D13: 1300
A14: 18 | B14: قلب واوعية دموية | C14: 100 | D14: 1300
A15: 5 | B15: الاسنان | C15: 60 | D15: 0 | E15: 13 | F15: 60 | G15: 780 | H15: 3 | I15: 20 | J15: 60 | K15: 1800 | L15: 2640 | T15: =L15*50% -> 1320 | U15: =S15+N15 -> 0 | V15: 1320 | W15: 70
A16: 9 | B16: الطواريء | C16: 80 | D16: 1200 | F16: 80 | G16: 0 | I16: 20 | J16: 0 | L16: 0 | T16: =L16 -> 0 | U16: 1800
A17: 19 | B17: المعمل | L17: 0 | T17: =L17 -> 0
B18: مصروفات يومية | W18: 11910
B19: دخل + مرتب الاشعة | L19: 850 | T19: 850 | U19: 260 | W19: 140
B20: مشرف تمريض اليومي | W20: 150
B21: مرتب النظافة اليومي | W21: 70
B22: مرتب الامن اليومي | W22: 150
B23: مرتب رسبشن اليومي | W23: 110
T25: =SUM(T3:T24) -> 5095 | U25: =SUM(U3:U24) -> 5985 | W25: =SUM(W3:W24) -> 12975
B26: التاريخ
B27: 2026-06-21 | L27: =SUM(L3:L24) -> 10340 | P27: الصافي | R27: =L27-(W25+U25) -> -8620
B28: حساب الاشعة | C28: 12 ساعة | D28: 400 | E28: كل فلم اشاعة علية 10 ج
B29: حساب الاشعة | C29: 8 ساعة | D29: 300 | E29: كل فلم اشاعة علية 10 ج
B30: حساب الاشعة | C30: 6 ساعة | D30: 200 | E30: كل فلم اشاعة علية 10 ج
B32: المعمل 50 % من الاجمالي
B33: الاسنان 50 % من الاجمالي
B34: المستلزمات كما هية للمبني

Sheet ث 22
E1: حساب العيادة الاجمالي
A2: م | B2: العيادة | C2: قيمة الكشف | D2: فكسد الدكتور الجمعة فقط | E2: عدد الكشوف | F2: قيمة الكشف | G2: اجمالي قيمة الكشوف | H2: عدد الاستشارات | I2: قيمة الاستشارة | J2: اجمالي قيمة الاستشارات | K2: اجمالي قيمة الخدمات | L2: اجمالي قيمة العيادة يومياً | M2: قيمة ال 10 كشوف | N2: الفكسد | O2: عدد باقي الكشوف | P2: باقي قيمة الكشوف | Q2: اجمالي الاستشارة و الخدمات | R2: اجمالي قيمة باقي الكشوف و الاستشارات والخدمات | S2: نسبة ال 50 % | T2: المبني | U2: الدكتور | V2: الفرق | W2: التمريض / المصروفات
A3: 1 | B3: الباطنة | C3: 80 | D3: 500 | F3: =C3 -> 80 | G3: =F3*E3 -> 0 | I3: 20 | J3: =H3*I3 -> 0 | L3: =K3+G3+J3 -> 0 | M3: =10*F3 -> 800 | N3: =D3 -> 500 | O3: =(E3-10) -> -10 | P3: =O3*F3 -> -800 | Q3: =K3+J3 -> 0 | R3: =Q3+P3 -> -800 | S3: =R3*50% -> -400 | T3: =(S3+M3)-N3 -> -100 | U3: =S3+N3 -> 100 | V3: =L3-(U3+T3) -> 0 | W3: 75
A4: 3 | B4: الاطفال | C4: 80 | D4: 500 | F4: =C4 -> 80 | G4: =F4*E4 -> 0 | I4: 20 | J4: =H4*I4 -> 0 | L4: =K4+G4+J4 -> 0 | M4: =10*F4 -> 800 | N4: =D4 -> 500 | O4: =(E4-10) -> -10 | P4: =O4*F4 -> -800 | Q4: 0 | R4: =Q4+P4 -> -800 | S4: =R4*50% -> -400 | T4: -100 | U4: 100 | V4: =L4-(U4+T4) -> 0 | W4: 75
A5: 4 | B5: النساء والتوليد | C5: 80 | D5: 500
A6: 10 | B6: العظام | C6: 80 | D6: 800
A7: 11 | B7: الرمد | C7: 80 | D7: 500
A8: 12 | B8: الانف واذن | C8: 80 | D8: 1000
A9: 16 | B9: الجراحة | C9: 80 | D9: 500 | F9: =C9 -> 80 | G9: =F9*E9 -> 0 | I9: 20 | J9: =H9*I9 -> 0 | L9: =K9+G9+J9 -> 0 | M9: =10*F9 -> 800 | N9: =D9 -> 500 | O9: =(E9-10) -> -10 | P9: =O9*F9 -> -800 | Q9: =K9+J9 -> 0 | R9: =Q9+P9 -> -800 | S9: =R9*50% -> -400 | T9: =(S9+M9)-N9 -> -100 | U9: =S9+N9 -> 100 | V9: =L9-(U9+T9) -> 0 | W9: 75
A10: 17 | B10: المسالك البولية | C10: 80 | D10: 500
A11: 13 | B11: الجلدية والتناسلية | C11: 80 | D11: 800
A12: 14 | B12: الصدرية | C12: 80 | D12: 1500
A13: 15 | B13: المخ والاعصاب | C13: 100 | D13: 1300
A14: 18 | B14: قلب واوعية دموية | C14: 100 | D14: 1300
A15: 5 | B15: الاسنان | C15: 60 | D15: 0 | F15: 60 | G15: 0 | I15: 20 | J15: 0 | L15: 0 | T15: =L15*50% -> 0 | U15: =S15+N15 -> 0 | V15: 0 | W15: 70
A16: 9 | B16: الطواريء | C16: 80 | D16: 1200 | F16: 80 | G16: 0 | I16: 20 | J16: 0 | L16: 0 | T16: =L16 -> 0 | U16: 1800
A17: 19 | B17: المعمل | L17: 0 | T17: =L17 -> 0
B18: مصروفات يومية
B19: دخل + مرتب الاشعة | W19: 140
B20: مشرف تمريض اليومي | W20: 150
B21: مرتب النظافة اليومي | W21: 70
B22: مرتب الامن اليومي | W22: 150
B23: مرتب رسبشن اليومي | W23: 110
T25: =SUM(T3:T24) -> -300 | U25: =SUM(U3:U24) -> 2100 | W25: =SUM(W3:W24) -> 915
B26: التاريخ
B27: 2026-06-22 | L27: =SUM(L3:L24) -> 0 | P27: الصافي | R27: =L27-(W25+U25) -> -3015
B28: حساب الاشعة | C28: 12 ساعة | D28: 400 | E28: كل فلم اشاعة علية 10 ج
B29: حساب الاشعة | C29: 8 ساعة | D29: 300 | E29: كل فلم اشاعة علية 10 ج
B30: حساب الاشعة | C30: 6 ساعة | D30: 200 | E30: كل فلم اشاعة علية 10 ج
B32: المعمل 50 % من الاجمالي
B33: الاسنان 50 % من الاجمالي
B34: المستلزمات كما هية للمبني
